Cogmind - Beta 13 @@@ ROGUE MODE // 2024.04.04 @ 21:30:30 Player: thatguyhowie Result: Destroyed by D-53 Grenadier with Mini Grenade Launcher Performance ------------- Evolutions (0) 0 Regions Visited (4) 800 Robots Destroyed (9) 45 Value Destroyed (244) 244 Prototype IDs (0) 0 Alien Tech Used (0) 0 Bonus (200) 200 TOTAL SCORE: 1289 Bonus ------- Aligned with FarCom 300 Friendly Fire -100 Cogmind --------- Core Integrity 0/250 Matter 254/300 Energy 100/100 System Corruption 0% Temperature Cool (0) Movement Core (100) Ox1 Location -9/Mines Parts ------- > --- POWER (1) -------- (None) > --- PROPULSION (2) --- (None) > --- UTILITY (2) ------ Small Storage Unit Signal Interpreter > --- WEAPON (2) ------- Light Assault Rifle > --- INVENTORY (8) ---- Aluminum Leg Improved Heat Sink Transport Network Coupler Medium Laser Makeshift Shrapnel Gun Field Lobotomy Kit Peak State ------------ > --- POWER ------------ Light Nuclear Core > --- PROPULSION ------- Aluminum Leg Aluminum Leg > --- UTILITY ---------- Small Storage Unit Signal Interpreter > --- WEAPON ----------- Light Assault Rifle Grenade Launcher > --- INVENTORY -------- Aluminum Leg Improved Heat Sink Transport Network Coupler Medium Laser Makeshift Shrapnel Gun Field Lobotomy Kit [Rating: 11] Favorites ----------- Power Ion Engine Engine Ion Engine Power Core Light Nuclear Core Propulsion Aluminum Leg Leg Aluminum Leg Utility Small Storage Unit Device Tractor Beam Storage Small Storage Unit Processor Signal Interpreter Weapon Light Assault Rifle Ballistic Gun Light Assault Rifle Launcher Grenade Launcher Build | -11 -10 -10 -10 -9 ------- Run | Yrd Mat Min Exi Min Slots Evolved . | . . . . . Power . | . . . . . Propulsion . | . . . . . Utility . | . . . . . Weapon . | . . . . . Parts Attached 14 | 5 3 4 . 2 Power 5 | 1 1 2 . 1 Engine 4 | 1 1 2 . . Core 1 | . . . . 1 Reactor . | . . . . . Propulsion 3 | 2 . 1 . . Treads . | . . . . . Leg 3 | 2 . 1 . . Wheel . | . . . . . Hover . | . . . . . Flight . | . . . . . Utility 3 | . 2 1 . . Device 1 | . 1 . . . Storage 1 | . 1 . . . Processor 1 | . . 1 . . Hackware . | . . . . . Protection . | . . . . . Artifact . | . . . . . Weapon 3 | 2 . . . 1 Energy Gun . | . . . . . Energy Cannon . | . . . . . Ballistic Gun 2 | 2 . . . . Ballistic Cannon . | . . . . . Launcher 1 | . . . . 1 Special Weapon . | . . . . . Impact Weapon . | . . . . . Slashing Weapon . | . . . . . Piercing Weapon . | . . . . . Special Melee Weapon . | . . . . . Unidentified Prototypes . | . . . . . Parts Lost 7 | . . 2 . 5 Power 3 | . . 1 . 2 Propulsion 3 | . . 1 . 2 Utility . | . . . . . Weapon 1 | . . . . 1 Highest Loss Streak 4 | . . 2 . 4 To Critical Strikes . | . . . . . Average Slot Usage (%) 96 | . 85 99 100 90 Engine 13 | . 14 14 14 4 Leg 27 | . 28 27 28 23 Device 3 | . 13 3 . . Storage 11 | . 1 14 14 14 Processor 10 | . . 10 14 14 Ballistic Gun 27 | . 28 28 28 16 Naked Turns . | . . . . . Heaviest Build 14 | 6 12 14 13 14 Greatest Support 20 | 20 20 20 20 20 Greatest Overweight (x) 1 | . . 1 . 1 Average Overweight (x) . | . . . . . Largest Inventory Capacity 8 | 5 8 8 8 8 Average Capacity 7 | 5 5 8 8 8 Most Carried 8 | 3 7 8 8 8 Average Carried 7 | 1 4 7 7 6 Final Capacity 8 | 5 8 8 8 8 Final Carried 8 | 3 7 8 8 6 Class Distribution -------------------- 100% | Mutant Dominant Class ---------------- Mutant | -10/Materials Mutant | -10/Mines Mutant | -10/Exiles Mutant | -9/Mines Resources | -11 -10 -10 -10 -9 ----------- Run | Yrd Mat Min Exi Min Matter Collected 475 | 214 146 82 32 1 Remotely 218 | . 146 72 . . Salvage Created 389 | . 287 80 . 22 Parts 18 | . 15 3 . . Haulers Intercepted 1 | . 1 . . . Recyclers Shooed . | . . . . . Parts Field Recycled . | . . . . . Retrieved Matter . | . . . . . Parts Self-Destructed . | . . . . . Prevented . | . . . . . Kills | -11 -10 -10 -10 -9 ------- Run | Yrd Mat Min Exi Min Combat Hostiles Destroyed 16 | . 4 2 . 10 Guns 6 | . 4 2 . . AOE 10 | . . . . 10 Classes Destroyed 4 | . 3 . . 1 Worker 2 | . 2 . . . Hauler 1 | . 1 . . . Grunt 6 | . 4 2 . . Assembled 10 | . . . . 10 Best Kill Streak 10 | . 2 2 . 10 Combat Bots Only 10 | . 2 2 . 10 Max Kills in Single Turn 5 | . 2 2 . 5 Gunslinging 1 | . . 1 . . Exploded 5 | . . . . 5 Melee . | . . . . . Uniques/NPCs Destroyed . | . . . . . Combat | -11 -10 -10 -10 -9 -------- Run | Yrd Mat Min Exi Min Hostile Shots Fired 67 | . 7 31 . 29 Missed 18 | . 4 6 . 8 Damage Taken 919 | . 33 320 . 566 Core 258 | . . 54 . 204 Absorbed by Shields . | . . . . . Core Remaining (%) 100 | 100 . . . . Volleys Fired 47 | . 20 13 8 6 Largest 2 | . 2 2 2 2 Hottest 50 | . 40 40 40 50 Shots Fired 94 | . 40 26 16 12 Gun 90 | . 40 26 16 8 Cannon . | . . . . . Launcher 4 | . . . . 4 Special . | . . . . . Kinetic 90 | . 40 26 16 8 Thermal . | . . . . . Explosive 4 | . . . . 4 Electromagnetic . | . . . . . Robot Hit Streak 8 | . 6 8 . 1 Robot Miss Streak 4 | . 4 1 . 4 Penetration Max . | . . . . . Secondary Targets 1 | . . 1 . . Max Gunslinging Chain 1 | . . 1 . . Shots Hit Robots 46 | . 20 22 . 4 Core Hits 41 | . 11 6 . 24 Critical Kills . | . . . . . Critical Parts Destroyed 1 | . 1 . . . Critical Strikes 1 | . 1 . . . Destroy 1 | . 1 . . . Melee Attacks . | . . . . . Impact . | . . . . . Slashing . | . . . . . Piercing . | . . . . . Sneak Attacks . | . . . . . Combat Hostiles . | . . . . . Follow-up Attacks . | . . . . . Damage Inflicted 1211 | . 223 222 . 766 Guns 474 | . 223 222 . 29 Cannons . | . . . . . Explosions 737 | . . . . 737 Melee . | . . . . . Ramming . | . . . . . Kinetic 474 | . 223 222 . 29 Thermal . | . . . . . Explosive 737 | . . . . 737 Electromagnetic . | . . . . . Impact . | . . . . . Slashing . | . . . . . Piercing . | . . . . . Highest Corruption . | . . . . . Average Corruption . | . . . . . Corruption Purged . | . . . . . Corruption Blocked . | . . . . . Overload Shots . | . . . . . Overflow Damage 2 | . . . . 2 Projectiles . | . . . . . Explosions 2 | . . . . 2 Melee . | . . . . . Knockbacks . | . . . . . Impact . | . . . . . Kinetic . | . . . . . Secondary . | . . . . . Self-Inflicted Damage 68 | . . . . 68 Shots 3 | . . . . 3 Rammed . | . . . . . Targets Rammed . | . . . . . Kicked . | . . . . . Crushed . | . . . . . Highest Temperature 48 | . 6 48 . 20 Average Temperature 18 | . 6 24 . 9 Received Heat Transfer 276 | . 18 198 . 60 Siege Activations . | . . . . . Robots Corrupted . | . . . . . Combat Hostiles . | . . . . . Parts Fried . | . . . . . Impact Corruptions . | . . . . . Robots Melted . | . . . . . Combat Hostiles . | . . . . . Parts Melted . | . . . . . Heat Transferred . | . . . . . Parts Sabotaged . | . . . . . Parts Stolen . | . . . . . Parts Stripped . | . . . . . Power Chain Reactions . | . . . . . Alert | -11 -10 -10 -10 -9 ------- Run | Yrd Mat Min Exi Min Peak Influence 107 | . 107 54 . 25 Initial 24 | . . 24 . . Average 30 | . 32 35 . 13 Maximum Alert Level . | . . . . . Low Security (%) 100 | 100 100 100 . 100 Level 1 . | . . . . . Level 2 . | . . . . . Level 3 . | . . . . . Level 4 . | . . . . . Level 5 . | . . . . . High Security . | . . . . . Max Security . | . . . . . Squads Dispatched 3 | . 3 . . . Investigation . | . . . . . Extermination . | . . . . . Reinforcement 3 | . 3 . . . Assault . | . . . . . Garrison . | . . . . . Intercept . | . . . . . Searches Triggered . | . . . . . Construction Impeded . | . . . . . Haulers Reinforced . | . . . . . Active Scanning Responses . | . . . . . Cargo Convoy Interrupts . | . . . . . Stealth | -11 -10 -10 -10 -9 --------- Run | Yrd Mat Min Exi Min Distress Signals 3 | . 3 . . . Communications Jammed . | . . . . . Distress Signals . | . . . . . Times Spotted 32 | . 11 2 . 19 Peak Tracking Total 16 | . 4 2 . 16 Tactical Retreats 2 | . 2 . . . Traps | -11 -10 -10 -10 -9 ------- Run | Yrd Mat Min Exi Min Traps Triggered . | . . . . . Indirectly . | . . . . . Trap Hack Attempts . | . . . . . Triggered . | . . . . . Disarmed . | . . . . . Reprogrammed . | . . . . . Reused . | . . . . . Traps Extracted . | . . . . . Installed . | . . . . . Triggered . | . . . . . Machines | -11 -10 -10 -10 -9 ---------- Run | Yrd Mat Min Exi Min Machines Disabled 2 | . . . 1 1 Max in Single Turn 1 | . . . 1 1 Machines Repaired . | . . . . . Machines Dismantled . | . . . . . Machines Sabotaged . | . . . . . Overloaded Fab Kills . | . . . . . Hacking | -11 -10 -10 -10 -9 --------- Run | Yrd Mat Min Exi Min Machines Accessed 6 | . 2 . 4 . Terminals 2 | . 2 . . . Fabricators . | . . . . . Repair Stations . | . . . . . Recycling Units . | . . . . . Scanalyzers . | . . . . . Garrison Access . | . . . . . Total Hacks 53 | . 4 . 49 . Successful 51 | . 2 . 49 . Failed 2 | . 2 . . . Catastrophic . | . . . . . Database Lockouts . | . . . . . Manual 1 | . . . 1 . Terminals 4 | . 4 . . . Fabricators . | . . . . . Repair Stations . | . . . . . Recycling Units . | . . . . . Scanalyzers . | . . . . . Garrison Access . | . . . . . Terminal Hacks 51 | . 2 . 49 . Record 49 | . . . 49 . Branch Access Points 1 | . 1 . . . Emergency Access Points 1 | . 1 . . . Fabricator Hacks . | . . . . . Repair Station Hacks . | . . . . . Recycling Unit Hacks . | . . . . . Scanalyzer . | . . . . . Garrison Access Hacks . | . . . . . Unauthorized Hacks . | . . . . . Terminals . | . . . . . Fabricators . | . . . . . Repair Stations . | . . . . . Recycling Units . | . . . . . Scanalyzers . | . . . . . Garrison Access . | . . . . . Data Cores Recovered . | . . . . . Used . | . . . . . Hacking Detections 2 | . 2 . . . Full Trace Events . | . . . . . Feedback Events . | . . . . . Feedback Blocked . | . . . . . Robot Schematics Acquired . | . . . . . Robots Built . | . . . . . Authchips . | . . . . . Time . | . . . . . Total Robot Build Rating . | . . . . . Part Schematics Acquired . | . . . . . Parts Built . | . . . . . Authchips . | . . . . . Time . | . . . . . Total Part Build Rating . | . . . . . Parts Repaired . | . . . . . Time . | . . . . . Parts Recycled . | . . . . . Recycled Matter . | . . . . . Retrieved Matter . | . . . . . Retrieved Components . | . . . . . Parts Scanalyzed . | . . . . . Part Schematics Acquired . | . . . . . Parts Damaged . | . . . . . Bothacking | -11 -10 -10 -10 -9 ------------ Run | Yrd Mat Min Exi Min Used RIF Installer . | . . . . . Robots Hacked . | . . . . . Non-combat . | . . . . . Combat . | . . . . . Robot Hacks Applied . | . . . . . Relay Couplers Released . | . . . . . Fabnet Peak Effective % . | . . . . . Robots Rewired . | . . . . . Allies Hacked . | . . . . . Hacks Repelled . | . . . . . Allies | -11 -10 -10 -10 -9 -------- Run | Yrd Mat Min Exi Min Total Allies . | . . . . . Largest Group . | . . . . . Highest-Rated Group . | . . . . . Highest-Rated Ally . | . . . . . Total Orders . | . . . . . Ally Attacks . | . . . . . Total Damage . | . . . . . Kills . | . . . . . Allies Corrupted . | . . . . . Allies Melted . | . . . . . Intel | -11 -10 -10 -10 -9 ------- Run | Yrd Mat Min Exi Min Robot Analysis Total . | . . . . . Derelict Logs Recovered 2 | . . 2 . . Drone Launches . | . . . . . Drone Recoveries . | . . . . . Exploration | -11 -10 -10 -10 -9 ------------- Run | Yrd Mat Min Exi Min Turns Passed 2513 | 83 510 522 1335 63 Spaces Moved 1948 | 64 365 390 1092 37 Core 11 | 5 . . . 6 Treads . | . . . . . Legs 1937 | 59 365 390 1092 31 Wheels . | . . . . . Hover . | . . . . . Flight . | . . . . . Fastest Speed 50 | 50 120 120 120 100 Average Speed 119 | 114 120 121 120 116 Slowest Speed 190 | 120 120 190 120 120 Overloaded Moves . | . . . . . Propulsion Burnouts . | . . . . . Robots Hopped . | . . . . . Cave-ins Triggered . | . . . . . Exploration Rate (%) 45 | 3 45 72 94 12 Regions Visited 4 Branch Regions 3 Pre-discovered Areas 1 | . . . 1 . Known Exits Taken 3 | . 1 1 1 . Unknown Exits Taken 1 | 1 . . . . Scrap Searched 1 | . . 1 . . Spaces Dug . | . . . . . Terrain Destroyed 23 | . . . . 23 Melee . | . . . . . Projectile . | . . . . . AOE 23 | . . . . 23 Terrain Rammed . | . . . . . Walls Destroyed . | . . . . . Machines Disabled . | . . . . . Actions | -11 -10 -10 -10 -9 --------- Run | Yrd Mat Min Exi Min Total 2035 | 71 400 416 1102 46 Wait 12 | . 7 5 . . Move 1944 | 63 364 389 1091 37 Hop . | . . . . . Pick Up 12 | 3 5 3 1 . Fast Attach 9 | 5 2 2 . . Attach 5 | . 1 2 . 2 Detach . | . . . . . Swap . | . . . . . Drop 5 | . 1 2 1 1 Fire 47 | . 20 13 8 6 Melee . | . . . . . Ram . | . . . . . Kick . | . . . . . Crush . | . . . . . Escape Stasis . | . . . . . Rewire 1 | . . . 1 . Trap . | . . . . . Miscellaneous . | . . . . . Route ------- -11/Scrapyard -10/Materials -10/Mines (discovered 3 exits: *Mat x2 / *Exi) -10/Exiles (discovered 2 exits: *Min x2) -9/Mines History --------- Turn | Location | Event 12 | -11/Scrapyard | Discovered new exit (range 16) 84 | -11/Scrapyard | Entered Materials 292 | -10/Materials | Identified exit to Mines 307 | -10/Materials | Build established: Mutant 594 | -10/Materials | Entered Mines 609 | -10/Mines | A weapon hastily lodged in a ceiling crevice suddenly fell to the ground 652 | -10/Mines | Discovered new exit (range 15) 736 | -10/Mines | Identified exit to Materials 1041 | -10/Mines | Learned location of 1 exit from Materials 1064 | -10/Mines | Learned Materials emergency access door positions 1088 | -10/Mines | Discovered exit to Materials (range 8) 1107 | -10/Mines | Deemed a non-threat by the Exiles lab entrance 1109 | -10/Mines | Discovered new exit (range 5) 1113 | -10/Mines | Identified exit to Exiles 1116 | -10/Mines | Entered Exiles 1175 | -10/Exiles | Discovered new exit (range 15) 1196 | -10/Exiles | Identified exit to Mines 1231 | -10/Exiles | Met 8R-AWN 1271 | -10/Exiles | Met EX-HEX 1416 | -10/Exiles | Met EX-DEC 1501 | -10/Exiles | Learned location of Zion (-7) 1574 | -10/Exiles | Discovered exit to Mines (range 10) 1670 | -10/Exiles | Met EX-BIN 1833 | -10/Exiles | Aligned with FarCom system 1835 | -10/Exiles | Given EX-Vault access code 2047 | -10/Exiles | Visited The Gauntlet 2295 | -10/Exiles | Opened EX-Vault 2306 | -10/Exiles | Found Prototype Special Weapon 2332 | -10/Exiles | Warned to stay clear of 0b10 Research branches 2451 | -10/Exiles | Left Exiles lab with Field Lobotomy Kit 2451 | -10/Exiles | Entered Mines 2452 | -9/Mines | Assembled infested the area 2457 | -9/Mines | Assisted by a Guerilla fighting off Assembled 2469 | -9/Mines | Met a Derelict bent on vengeance 2475 | -9/Mines | Core integrity fell below 50% 2501 | -9/Mines | Destroyed 10 combat bots 2511 | -9/Mines | Core integrity fell below 20% 2514 | -9/Mines | Destroyed by D-53 Grenadier with Mini Grenade Launcher Last Messages --------------- as-29288 system corrupted by crushing effect. HV Slug penetrates Wall. HV Slug penetrates as-79178. as-79178 destroyed. as-46587 destroyed. as-60289 destroyed. as-77172 destroyed. as-52676 destroyed. as-28525 destroyed. [Achievement: Quick And Dirty] as-80272 destroyed. as-61992 destroyed. as-29288 destroyed. The unstable cave ceiling collapses. 38-56T(h) destroyed. Acquired 1 matter. Grenade Launcher destroyed. Aluminum Leg destroyed. Lgt. Nuclear Core destroyed. The unstable cave ceiling collapses. Map ----- +----------------------------------------------------+ | ?????????????????????????????????????????????? | | ?????????????????????????????????????????????? | | ?????????????????????????????????????????????? | | ?????????????????????????????????????????????? | | ?????????????????????????????????????????????? | | ?????????????????????????????????????????????? | | ?????????????????????????????????????????????? | | ?????????????????????????????????????????????? | | ???????????????? ??????????????????????????? | | ???????????????? ??????????????????????????? | | ???????????????? ##????????????????????????? | | ??????????????## ##???????????????????????? | | ?????????????## #???????????????????????? | | ????????????## ##?????????????????????? | | ????????????" #?????????????????????? | | ?????????????" ??????????????????????? | | ????????????## ??????????????????????? | | ????????????# ??????????????????????? | | ????????????# ??????????????????????? | | ????????????# # #??????????????????????? | | ?????????????# ## #??????????????????????? | | ??????????#### d ## ######??????? ##???????? | | ??????##### # d # # ###### ##??????? | | ??????# =%! =%| ???????? | | ??????# """ ????????????? | | ??????# @ #?????????????????? | | ??????# < #?????????????????? | | ??????# #?????????????????? | | ??????# ##?????????????????? | | ??????# ##??????????????????? | | ??????# # # ###???????????????????? | | ??????#### # #########??????????????????????? | | ?????????######??????????????????????????????? | | | | | | | | | | | | | | | | | | | | | | | | | | | | | | | | | | | +----------------------------------------------------+ Best States ------------- Heat Dissipation 25 Energy Generation 14 Energy Capacity 250 Matter Stores 300 Matter Capacity 300 Sight Range 16 Terrain Scan Density 10 Evasion (%) 55 Item Schematics ----------------- None Robot Schematics ------------------ None Fabricated ------------ Nothing Alien Tech Used ----------------- None Achievements -------------- Librarian Quick And Dirty Use The Force Challenges ------------ None Game ------ Seed GunReactionScythe Manual? 0 Play Time 00:32:58 Cumulative 4.9 hours Start 2024.04.04 @ 20:59:20 End 2024.04.04 @ 21:30:30 Sessions 1 Manual Loads 0 Difficulty Rogue Special Mode None Game No. 6 Rogue 5 Adventurer 0 Explorer 1 Win Type - Total 0 Types 0/0/0/0/0/0/0/0/0 Lore% 13 Gallery% 7 Achievement% 11 Wizard Run 0 Options --------- Layout 1 ASCII 0 Keyboard 0 Movement Arrows Keybinds 0 Fullscreen 1 Font 24/Smallcaps Map View 50x35 Zoom Use 0% Tactical HUD 0 Map Filters NONE Filters NONE Steam 1 RUN: 9c7d8725-9f0b-4f5c-9b3a-40bb834eea2d